bitfinex/quotes_SOLUSD_20241009
["timestamp","ask_amount","ask_price","bid_price","bid_amount"]
[1728507890539,7.179,139.3,139.27,23.776884]
[1728507890841,21.73874963,139.35,139.22,70.0]
[1728507890842,7.1808,139.26,139.22,70.0]
[1728507891231,7.1798,139.28,139.24,77.1817]
[1728507891754,7.1798,139.28,139.24,70.0]
[1728507892117,7.1798,139.28,139.25,23.776884]
[1728507894538,7.1798,139.28,139.24,23.902374]
[1728507894717,54.73617243,139.33,139.24,23.902374]
[1728507894916,7.1811,139.26,139.23,23.776884]
[1728507895130,7.1811,139.26,139.25,23.776884]
[1728507895416,17.9485,139.29,139.22,70.0]
[1728507895632,7.1818,139.24,139.22,70.0]
[1728507895837,18.85107243,139.32,139.24,70.0]
[1728507896044,7.1787,139.3,139.26,7.1806]
[1728507896334,20.90647243,139.33,139.25,20.0]
[1728507896335,7.1803,139.27,139.25,20.0]
[1728507896521,7.1799,139.28,139.26,23.776884]
[1728507896717,7.1802,139.27,139.26,23.776884]
[1728507897115,7.1797,139.29,139.26,93.776884]
[1728507897320,0.90647243,139.33,139.27,0.25098]
[1728507897540,0.90647243,139.33,139.27,0.12549]
[1728507897541,7.1788,139.3,139.27,0.12549]
[1728507899133,7.1788,139.3,139.26,30.957484]
[1728507899331,7.1793,139.29,139.26,20.0]
[1728507899555,0.90647243,139.33,139.27,23.776884]
[1728507899740,7.1792,139.29,139.27,23.776884]
[1728507899932,0.90647243,139.33,139.27,23.776884]
[1728507900133,7.1788,139.3,139.27,23.776884]
[1728507900344,0.90647243,139.33,139.27,23.776884]
[1728507900529,7.1808,139.26,139.22,20.0]
[1728507900729,20.90647243,139.32,139.25,77.1813]
[1728507900944,7.1793,139.29,139.25,70.0]
[1728507901648,7.1793,139.29,139.26,23.776884]
[1728507902953,0.90647243,139.28,139.21,16.4897]
[1728507903181,7.1829,139.22,139.17,93.2269]
[1728507903455,7.1814,139.25,139.19,70.0]
[1728507903632,7.1814,139.25,139.2,1.43625469]
[1728507903826,7.1814,139.25,139.19,70.0]
[1728507904045,7.1814,139.25,139.2,7.1838]
[1728507904328,7.1813,139.25,139.2,7.1838]
[1728507905023,0.90647243,139.28,139.22,7.1826]
[1728507905343,0.90647243,139.28,139.21,71.43627443]
[1728507905344,7.1809,139.26,139.21,77.183]
[1728507905550,7.1809,139.26,139.22,23.902374]
[1728507905725,7.1809,139.26,139.24,23.776884]
[1728507905922,8.08667243,139.28,139.24,23.776884]
[1728507906122,20.0,139.29,139.24,23.776884]
[1728507906123,18.85007243,139.33,139.26,23.776884]
[1728507906347,7.1793,139.29,139.26,23.776884]
[1728507906727,7.1793,139.29,139.25,23.902374]
[1728507907338,7.1798,139.28,139.25,23.776884]
[1728507907543,0.90647243,139.33,139.24,23.776884]
[1728507907749,7.1817,139.25,139.21,20.0]
[1728507907953,7.1808,139.27,139.21,27.1833]
[1728507908129,7.1809,139.26,139.21,27.1833]
[1728507908530,20.0,139.28,139.18,70.0]
[1728507908754,20.0,139.26,139.18,70.0]
[1728507908945,7.1836,139.21,139.18,70.0]
[1728507909280,7.183,139.22,139.17,41.1899]
[1728507910046,7.1839,139.2,139.17,16.0416]
[1728507910249,18.86037243,139.25,139.17,16.0416]
[1728507910557,7.1835,139.21,139.17,16.0416]
[1728507911557,7.1835,139.21,139.18,23.776884]
[1728507913832,7.1835,139.21,139.2,23.776884]
[1728507914040,7.1835,139.21,139.18,23.776884]
[1728507916145,17.9603,139.2,139.17,1.43662795]
[1728507916342,7.1868,139.15,139.12,85.8437]
[1728507916566,7.1873,139.14,139.12,15.8437]
[1728507916820,7.1876,139.13,139.08,99.1762]
[1728507916940,0.90647243,139.17,139.08,91.9862]
[1728507916941,7.1881,139.12,139.08,91.9862]
[1728507917139,0.90647243,139.17,139.08,91.9862]
[1728507917335,7.187,139.14,139.1,70.0]
[1728507917639,7.1865,139.15,139.1,77.1888]
[1728507918459,20.90647243,139.18,139.08,99.1758]
[1728507918637,20.0,139.16,139.08,99.1758]
[1728507918969,0.90647243,139.15,139.09,0.12549]
[1728507919149,0.90647243,139.15,139.1,0.12549]
[1728507919347,7.188,139.12,139.1,0.12549]
[1728507919553,7.189,139.11,139.08,15.8437]
[1728507919735,20.0,139.14,139.06,70.0]
[1728507919937,7.1885,139.11,139.06,77.1906]
[1728507920957,0.90647243,139.1,139.04,17.9798]
[1728507921154,0.90647243,139.12,139.05,70.0]
[1728507921662,0.90647243,139.12,139.03,70.0]
[1728507921663,7.1921,139.05,139.03,70.0]
[1728507921866,7.1921,139.05,139.01,15.5564]
[1728507921867,7.1921,139.05,139.01,85.5564]
[1728507922174,0.90647243,139.1,139.03,70.0]
[1728507922344,20.90647243,139.13,139.04,1.43793629]
[1728507922550,7.1905,139.08,139.03,70.0]
[1728507922765,7.1901,139.08,139.03,77.1922]
[1728507923064,7.1889,139.11,139.05,77.1914]
[1728507923267,7.1889,139.11,139.08,70.0]
[1728507923470,24.1316,139.14,139.09,8.75241363]
[1728507923471,7.1874,139.14,139.09,8.75241363]
[1728507923663,7.1885,139.11,139.08,23.776884]
[1728507923864,7.189,139.1,139.07,23.902374]
[1728507924054,7.1884,139.12,139.08,70.25098]
[1728507924260,7.1884,139.12,139.09,23.776884]
[1728507925658,7.1884,139.12,139.1,1.43757593]
[1728507925969,7.1875,139.13,139.11,23.776884]
[1728507926662,0.90647243,139.17,138.62,40.15091401]
[1728507926663,7.1899,139.09,139.06,86.5454]
[1728507926873,7.1903,139.08,139.06,16.5454]
[1728507927057,0.90647243,139.16,139.04,76.264]
[1728507927058,7.1906,139.07,139.04,76.264]
[1728507927255,7.1901,139.08,139.04,76.264]
[1728507927466,0.90647243,139.11,139.04,76.264]
[1728507927659,7.1907,139.07,139.04,76.264]
[1728507928671,0.90647243,139.11,139.05,1.43803573]
[1728507928858,17.9712,139.12,139.05,1.43803573]
[1728507928859,7.1897,139.09,139.05,1.43803573]
[1728507929069,7.1897,139.09,139.06,23.902374]
[1728507929372,0.90647243,139.12,139.08,23.776884]
[1728507929679,7.1886,139.11,139.09,1.43774279]
[1728507930063,253.7,139.23,139.11,23.776884]
[1728507930064,0.90647243,139.16,139.11,23.776884]
[1728507930277,7.1875,139.13,139.12,1.43744116]
[1728507930478,0.90647243,139.16,139.1,23.776884]
[1728507930780,7.1873,139.14,139.12,23.776884]
[1728507931161,7.1873,139.14,139.11,23.776884]
[1728507931361,35.9153,139.22,139.13,23.776884]
[1728507931362,7.1863,139.16,139.13,23.776884]
[1728507931555,7.187,139.14,139.13,23.776884]
[1728507931751,7.187,139.14,139.12,23.776884]
[1728507932176,7.1865,139.15,139.12,23.776884]
[1728507933278,7.1849,139.18,139.15,0.25098]
[1728507933467,7.1849,139.18,139.11,40.1632]
[1728507933468,0.90647243,139.17,139.11,15.6726]
[1728507933662,0.90647243,139.2,139.1,23.776884]
[1728507933863,17.9644,139.17,139.09,23.776884]
[1728507934064,7.1889,139.11,139.08,85.6726]
[1728507934272,7.1881,139.12,139.08,85.6726]
[1728507934679,20.90647243,139.16,139.08,85.6726]
[1728507935181,7.1865,139.15,139.1,77.1886]
[1728507935376,1.03196243,139.19,139.08,15.6726]
[1728507935578,7.1886,139.11,139.09,0.12549]
[1728507935786,7.1881,139.12,139.09,0.12549]
[1728507936081,7.1886,139.11,139.09,23.776884]
[1728507936384,18.87197243,139.16,139.08,15.6726]
[1728507936562,7.189,139.1,139.08,15.6726]
[1728507937681,7.189,139.1,139.09,23.776884]
[1728507937878,18.87197243,139.16,139.09,23.776884]
[1728507938087,7.188,139.13,139.1,0.25098]
[1728507938281,7.1882,139.12,139.09,23.776884]
[1728507938470,7.1887,139.11,139.09,23.776884]
[1728507938670,7.1881,139.12,139.09,23.776884]
[1728507938889,0.90647243,139.15,139.09,23.776884]
[1728507939180,7.1884,139.12,139.09,23.776884]
[1728507939488,18.86827243,139.19,139.11,23.776884]
[1728507939785,18.86827243,139.19,139.13,23.776884]
[1728507939985,0.90647243,139.2,139.14,1.5627732]
[1728507940188,7.1858,139.17,139.14,0.12549]
[1728507940369,7.1866,139.15,139.13,23.776884]
[1728507940571,18.86667243,139.2,139.13,0.25098]
[1728507940766,7.185,139.18,139.15,23.776884]
[1728507940961,7.1856,139.17,139.14,23.776884]
[1728507941162,18.86667243,139.2,139.13,24.027864]
[1728507941163,7.1864,139.16,139.13,24.027864]
[1728507941567,7.185,139.18,139.13,31.214964]
[1728507942089,7.185,139.18,139.15,23.776884]
[1728507942788,7.1842,139.2,139.16,23.776884]
[1728507943086,7.1844,139.19,139.16,23.776884]
[1728507943564,7.184,139.2,139.17,0.12549]
[1728507943768,0.90647243,139.23,139.17,0.25098]
[1728507943980,7.1834,139.21,139.18,23.776884]
[1728507944185,0.90647243,139.25,139.18,23.776884]
[1728507944366,0.90647243,139.25,139.19,1.68746297]
[1728507944570,6.4894,139.31,139.25,0.12549]
[1728507944768,7.1792,139.3,139.27,0.25098]
[1728507945003,7.1794,139.29,139.26,23.776884]
[1728507945172,7.1794,139.29,139.25,23.902374]
[1728507945370,0.90647243,139.33,139.26,0.12549]
[1728507945681,0.90647243,139.33,139.27,23.776884]
[1728507945884,20.90647243,139.33,139.27,23.776884]
[1728507946192,7.1787,139.31,139.28,0.12549]
[1728507946486,7.1787,139.31,139.29,23.776884]
[1728507946679,7.1787,139.3,139.29,23.776884]
[1728507946879,7.1807,139.27,139.25,0.25098]
[1728507947086,7.1807,139.27,139.22,70.0]
[1728507947087,7.1807,139.27,139.24,24.027864]
[1728507947295,7.1807,139.27,139.24,94.027864]
[1728507947590,7.1792,139.29,139.26,70.0]
[1728507947890,7.1783,139.31,139.27,25.46358849]
[1728507948195,0.90647243,139.33,139.27,25.46358849]
[1728507948492,7.1794,139.29,139.28,0.12549]
[1728507948688,7.1786,139.31,139.28,0.12549]
[1728507948993,25.149,139.34,139.28,0.12549]
[1728507948994,7.207,139.34,139.31,23.776884]
[1728507949175,7.207,139.34,139.33,23.776884]
[1728507949378,7.207,139.34,139.33,24.027864]
[1728507949582,6.8985,139.34,139.28,70.0]
[1728507949778,6.9168772,139.35,139.28,70.0]
[1728507950091,7.1777,139.32,139.28,70.0]
[1728507950268,6.9168772,139.35,139.3,70.0]
[1728507950470,7.1772,139.33,139.3,70.0]
[1728507950886,7.1772,139.33,139.31,0.12549]
[1728507951085,7.178,139.32,139.29,23.902374]
[1728507951390,7.178,139.32,139.3,0.12549]
[1728507951879,7.178,139.32,139.31,23.902374]
[1728507952190,7.178,139.32,139.31,23.776884]
[1728507952492,7.1772,139.33,139.31,23.776884]
[1728507953067,7.1777,139.32,139.31,23.776884]
[1728507953268,7.1777,139.32,139.31,23.902374]
[1728507953474,7.1777,139.32,139.31,23.776884]
[1728507953988,0.8322772,139.35,139.31,23.776884]
[1728507953989,0.8322772,139.35,139.31,23.902374]
[1728507954200,0.8322772,139.35,139.34,70.25098]
[1728507954391,0.8322772,139.35,139.34,114.027864]
[1728507955277,0.8322772,139.35,139.34,137.072764]
[1728507955494,7.173,139.42,139.39,0.25098]
[1728507955702,7.1733,139.41,139.39,24.027864]
[1728507956203,7.1726,139.42,139.39,24.027864]
[1728507956505,24.4263,139.47,139.42,0.25098]
[1728507956678,24.4263,139.47,139.42,70.25098]
[1728507956873,1.73874963,139.49,139.43,23.902374]
[1728507957080,7.1715,139.44,139.43,24.027864]
[1728507957989,7.1715,139.44,139.43,23.776884]
[1728507958295,7.1732,139.41,139.38,20.0]
[1728507958482,7.1725,139.42,139.4,70.0]
[1728507958900,7.1725,139.42,139.38,90.0]
[1728507959103,17.9272,139.46,139.38,90.0]
[1728507959276,20.90647243,139.45,139.37,20.0]
[1728507959473,7.173,139.42,139.38,70.0]
[1728507959778,0.90647243,139.43,139.37,20.0]
[1728507959989,7.1745,139.39,139.37,20.0]
[1728507960202,7.1736,139.4,139.39,70.0]
[1728507960499,7.1736,139.4,139.38,0.12549]
[1728507961481,0.90647243,139.44,139.35,70.0]
[1728507961696,7.1755,139.37,139.35,70.0]
[1728507962475,7.1747,139.38,139.35,70.0]
[1728507962675,7.1752,139.37,139.35,70.0]
[1728507963494,7.1752,139.37,139.36,23.902374]
[1728507963897,7.1741,139.39,139.37,0.12549]
[1728507964098,7.1741,139.39,139.38,23.776884]
[1728507964881,0.90647243,139.41,139.36,25.21168381]
[1728507965081,7.1747,139.38,139.36,25.21168381]
[1728507966011,18.83877243,139.42,139.35,23.776884]
[1728507966193,7.1761,139.36,139.35,24.027864]
[1728507967990,18.83877243,139.42,139.37,70.0]
[1728507967991,7.1742,139.39,139.37,70.0]
[1728507968187,7.1742,139.39,139.38,25.2115511]
[1728507968890,7.05407243,139.44,139.38,25.3370411]
[1728507969099,0.90647243,139.43,139.38,23.776884]
[1728507969324,0.90647243,139.45,139.38,23.776884]
[1728507969489,7.1741,139.39,139.38,23.776884]
[1728507970994,7.1741,139.39,139.38,23.276884]
[1728507972802,7.1734,139.41,139.39,0.12549]
[1728507973222,7.1734,139.41,139.39,0.25098]
[1728507973401,20.0,139.44,139.39,70.25098]
[1728507973600,7.1696,139.48,139.46,24.027864]
[1728507973802,17.9204,139.51,139.46,24.027864]
[1728507974009,8.0011772,139.49,139.46,24.027864]
[1728507974207,7.17,139.47,139.46,23.776884]
[1728507975210,18.83127243,139.48,139.4,20.0]
[1728507975409,7.1721,139.43,139.4,20.0]
[1728507975715,18.83127243,139.48,139.41,70.0]
[1728507975928,7.17,139.47,139.45,70.0]
[1728507976222,7.1709,139.46,139.44,0.12549]
[1728507976603,7.1709,139.46,139.44,24.027864]
[1728507977417,0.8322772,139.49,139.44,24.027864]
[1728507977626,7.171,139.45,139.44,23.776884]
[1728507977803,0.90647243,139.48,139.39,86.5722]
[1728507978008,7.1731,139.41,139.39,16.5722]
[1728507978621,7.1736,139.4,139.39,16.5722]
[1728507978821,17.931,139.43,139.36,70.0]
[1728507979020,7.1736,139.4,139.38,70.0]
[1728507979518,7.1732,139.41,139.38,70.0]
[1728507979727,7.1742,139.39,139.36,70.0]
[1728507979899,17.9322,139.42,139.35,16.5722]
[1728507980100,0.90647243,139.41,139.35,16.5722]
[1728507980301,17.9353,139.39,139.32,70.0]
[1728507980601,7.1762,139.35,139.32,70.0]
[1728507981006,7.1767,139.34,139.32,70.0]
[1728507982022,0.90647243,139.38,139.33,24.027864]
[1728507982230,7.1762,139.35,139.33,24.027864]
[1728507982528,7.1746,139.38,139.35,24.027864]
[1728507982826,7.1756,139.36,139.35,23.776884]
[1728507983001,0.90647243,139.38,139.31,20.0]
[1728507983323,7.1767,139.34,139.31,20.0]
[1728507983515,0.90647243,139.38,139.32,70.0]
[1728507983827,7.1762,139.35,139.32,70.0]
[1728507984124,7.1752,139.37,139.35,24.027864]
[1728507984426,7.1752,139.37,139.36,1.43486063]
[1728507984597,7.1752,139.37,139.36,25.21174463]
[1728507984803,0.90647243,139.41,139.37,23.776884]
[1728507984804,7.1747,139.38,139.37,23.776884]
[1728507985216,7.174,139.4,139.37,23.776884]
[1728507985523,7.1742,139.39,139.38,1.43474146]
[1728507985699,7.1742,139.39,139.38,23.776884]
[1728507987025,7.1742,139.39,139.37,23.776884]
[1728507987200,7.1736,139.4,139.39,23.776884]
[1728507987402,7.1736,139.4,139.38,1.43463585]
[1728507987707,7.1731,139.41,139.39,23.776884]
[1728507987906,18.83447243,139.45,139.4,1.43455628]
[1728507988110,7.1721,139.43,139.41,23.776884]
[1728507988309,7.1721,139.43,139.42,23.776884]
[1728507988527,7.1735,139.41,139.38,20.0]
[1728507988823,18.83357243,139.46,139.39,24.027864]
[1728507989020,0.90647243,139.46,139.38,23.776884]
[1728507989197,7.1741,139.39,139.38,23.776884]
[1728507991330,7.1735,139.41,139.38,25.21156086]
[1728507991626,7.1736,139.4,139.38,25.21156086]
[1728507993829,7.1731,139.41,139.39,0.25098]
[1728507994030,0.90647243,139.46,139.4,25.21130448]
[1728507994238,7.173,139.41,139.4,23.776884]
[1728507994726,7.1741,139.39,139.38,23.776884]
[1728507996309,7.1761,139.35,139.34,16.4133]
[1728507996705,7.1767,139.34,139.32,6.5342]
[1728507997731,7.1767,139.34,139.33,24.027864]
[1728507998513,7.1767,139.34,139.33,23.776884]
[1728507998728,17.9387,139.37,139.28,76.5342]
[1728507998921,7.1788,139.3,139.28,76.5342]
[1728507999234,7.1792,139.29,139.27,16.4133]
[1728507999448,6.95657243,139.34,139.24,76.5342]
[1728507999736,6.95657243,139.34,139.23,16.4133]
[1728507999737,7.1813,139.25,139.23,16.4133]
[1728508000734,7.1813,139.26,139.23,16.4133]
[1728508001030,7.1814,139.25,139.23,16.4133]
[1728508001728,7.1814,139.25,139.24,23.902374]
[1728508002236,7.1814,139.25,139.23,16.4133]
[1728508002835,17.9489,139.29,139.2,76.5342]
[1728508003037,17.9489,139.29,139.21,20.0]
[1728508003038,7.1823,139.23,139.21,20.0]
[1728508003732,7.1823,139.23,139.2,70.0]
[1728508004545,7.1823,139.23,139.21,0.12549]
[1728508005034,7.1814,139.25,139.21,1.56184905]
[1728508005245,0.90647243,139.3,139.24,70.0]
[1728508005417,7.1808,139.26,139.23,0.12549]
[1728508005619,7.1808,139.26,139.24,0.12549]
[1728508005817,7.1803,139.27,139.24,0.12549]
[1728508006122,7.1793,139.29,139.25,23.902374]
[1728508006315,7.1787,139.3,139.27,23.776884]
[1728508006634,7.1787,139.3,139.29,23.776884]
[1728508006885,7.1783,139.31,139.29,23.776884]
[1728508007212,7.1787,139.3,139.29,23.776884]
[1728508008650,18.85027243,139.33,139.25,0.12549]
[1728508008940,20.0,139.3,139.19,85.1179]
[1728508009121,7.1834,139.21,139.19,15.1179]
[1728508009751,7.1839,139.2,139.19,15.1179]
[1728508009917,7.1845,139.19,139.17,70.0]
[1728508010631,7.184,139.2,139.17,70.0]
[1728508010829,20.90647243,139.24,139.18,1.43674108]
[1728508011056,7.1824,139.23,139.19,70.0]
[1728508011253,7.1828,139.22,139.2,24.027864]
[1728508014159,7.1828,139.22,139.21,25.21334504]
[1728508015649,7.1828,139.22,139.2,24.027864]
[1728508015861,7.1828,139.22,139.21,25.21335287]
[1728508016242,7.1828,139.22,139.21,23.776884]
[1728508016441,7.1822,139.24,139.2,24.027864]
[1728508016742,20.90647243,139.27,139.21,1.43629741]
[1728508016945,20.90647243,139.27,139.23,23.776884]
[1728508017340,20.90647243,139.3,139.23,23.776884]
[1728508017541,20.90647243,139.3,139.22,25.21313657]
[1728508017741,20.90647243,139.3,139.22,23.776884]
[1728508018336,7.1818,139.24,139.22,23.776884]
[1728508019349,7.1823,139.23,139.22,23.776884]
[1728508019956,7.1834,139.21,139.19,70.0]
[1728508020170,7.1834,139.21,139.18,20.0]
[1728508020463,7.1839,139.2,139.17,70.0]
[1728508020665,7.1855,139.17,139.15,16.0204]
[1728508021169,0.90647243,139.21,139.16,1.43695081]
[1728508021170,7.1849,139.18,139.16,1.43695081]
[1728508021347,0.90647243,139.21,139.15,16.0204]
[1728508021348,7.1854,139.17,139.15,16.0204]
[1728508021752,7.1854,139.17,139.15,17.4573896]
[1728508021954,7.1854,139.17,139.15,16.0204]
[1728508022269,7.1854,139.17,139.16,1.43699272]
[1728508022473,17.9578,139.22,139.16,1.43697276]
[1728508022643,17.9541,139.25,139.17,70.0]
[1728508022837,7.1835,139.21,139.18,1.4366124]
[1728508023153,7.1835,139.21,139.19,23.776884]
[1728508023459,7.183,139.22,139.21,23.776884]
[1728508024655,7.184,139.2,139.18,24.027864]
[1728508025262,7.1844,139.19,139.18,23.776884]
[1728508025570,7.1854,139.17,139.15,16.0204]
[1728508025869,17.9589,139.21,139.15,16.0204]
[1728508026046,7.1866,139.15,139.11,99.7218]
[1728508026246,7.1861,139.16,139.13,70.0]
[1728508026447,7.1861,139.16,139.14,1.43704685]
[1728508027051,7.187,139.14,139.12,20.0]
[1728508027265,7.187,139.14,139.11,110.5041]
[1728508027561,7.187,139.14,139.11,92.5334]
[1728508027745,7.187,139.14,139.11,86.1339]
[1728508027945,17.9643,139.17,139.11,16.1339]
[1728508028144,7.1876,139.13,139.12,1.43748441]
[1728508028465,20.90647243,139.19,139.12,8.62528441]
[1728508028646,20.90647243,139.19,139.13,70.0]
[1728508028971,7.1864,139.16,139.11,93.3223]
[1728508029148,7.1866,139.15,139.11,86.1339]
[1728508029346,20.90647243,139.19,139.12,25.46510915]
[1728508029546,7.1869,139.15,139.12,24.027864]
[1728508030169,7.1869,139.15,139.14,23.776884]
[1728508030340,20.90647243,139.19,139.14,23.776884]
[1728508030546,7.1854,139.17,139.16,23.776884]
[1728508031268,24.5752,139.2,139.13,70.0]
[1728508031269,7.1849,139.18,139.15,23.776884]
[1728508031445,7.1849,139.18,139.17,23.776884]
[1728508031768,25.47787243,139.23,139.17,23.776884]
[1728508032145,7.1849,139.18,139.17,23.776884]
[1728508032362,7.1854,139.17,139.16,23.776884]
[1728508032562,0.90647243,139.2,139.13,70.0]
[1728508032747,0.90647243,139.2,139.14,1.4370488]
[1728508032949,7.1861,139.16,139.14,1.4370488]
[1728508033751,7.1861,139.16,139.15,23.776884]
[1728508035047,0.90647243,139.23,139.18,23.902374]
[1728508035372,7.1834,139.21,139.2,23.776884]
[1728508035669,17.9576,139.22,139.12,70.0]
[1728508035970,7.1859,139.16,139.13,24.027864]
[1728508039275,7.1844,139.2,139.16,23.776884]
[1728508039460,7.1844,139.19,139.18,23.776884]
[1728508041151,0.90647243,139.22,139.11,16.1339]
[1728508041345,26.0675,139.19,139.11,16.1339]
[1728508041550,7.1891,139.1,139.08,86.2528]
[1728508041774,17.9667,139.15,139.08,86.2528]
[1728508041984,7.1876,139.13,139.09,1.43762818]
[1728508042276,0.90647243,139.18,139.1,70.0]
[1728508042487,7.186,139.16,139.12,7.1878]
[1728508042689,7.1855,139.17,139.13,1.43719854]
[1728508042977,7.1863,139.16,139.14,23.776884]
[1728508043149,7.1863,139.16,139.13,23.776884]
[1728508043482,7.1863,139.16,139.13,25.2140576]
[1728508044481,7.1863,139.16,139.13,23.776884]
[1728508045176,7.1855,139.17,139.13,30.964184]
[1728508045472,7.1855,139.17,139.14,1.43717575]
[1728508045675,0.90647243,139.19,139.15,23.776884]
[1728508046571,7.1856,139.17,139.15,23.776884]
[1728508046778,7.1856,139.17,139.13,23.776884]
[1728508046971,7.186,139.16,139.13,23.776884]
[1728508047174,7.1853,139.18,139.15,23.776884]
[1728508047359,0.90647243,139.19,139.15,23.776884]
[1728508047554,7.1859,139.16,139.15,23.776884]
[1728508047957,7.1856,139.17,139.15,23.776884]
[1728508048690,7.1851,139.18,139.14,31.214764]
[1728508048862,7.1845,139.19,139.17,23.776884]
[1728508049061,0.90647243,139.21,139.14,0.25098]
[1728508049282,7.186,139.16,139.14,0.25098]
[1728508049457,17.9603,139.2,139.13,23.776884]
[1728508049658,0.90647243,139.21,139.13,1.43724969]
[1728508049659,0.90647243,139.19,139.13,1.43724969]
[1728508049853,7.1871,139.14,139.11,20.0]
[1728508050070,7.1875,139.13,139.1,87.9718]
[1728508050283,7.1871,139.14,139.1,87.9718]
[1728508050479,7.1871,139.14,139.1,95.1608]
[1728508050687,7.1871,139.14,139.1,17.9718]
[1728508050988,7.188,139.12,139.08,100.0759]
[1728508051484,7.1891,139.1,139.08,86.2528]
[1728508051686,17.9681,139.14,139.05,7.1911]
[1728508051687,20.90647243,139.13,139.05,15.4397]
[1728508051863,7.1905,139.08,139.05,15.4397]
[1728508052061,0.90647243,139.12,139.06,1.43795598]
[1728508052392,0.90647243,139.12,139.05,15.4397]
[1728508052393,7.1902,139.08,139.05,15.4397]
[1728508052558,7.1896,139.09,139.06,1.4379344]
[1728508052761,7.1891,139.1,139.06,1.4379344]
[1728508053262,7.1897,139.09,139.05,92.6313]
[1728508053892,7.1897,139.09,139.07,23.776884]
[1728508054089,0.90647243,139.13,139.08,1.43790067]
[1728508054398,7.1893,139.1,139.09,23.776884]
[1728508057285,7.1893,139.1,139.06,25.46574154]
[1728508057899,7.1886,139.11,139.06,32.65674154]
[1728508058090,7.1886,139.11,139.07,70.0]
[1728508058290,7.1886,139.11,139.08,25.21459099]
[1728508059492,7.1876,139.13,139.1,23.776884]
[1728508059699,18.87067243,139.17,139.12,23.776884]
[1728508060001,7.1875,139.13,139.12,23.776884]
[1728508060792,20.90647243,139.16,139.08,20.0]
[1728508060994,7.1886,139.11,139.09,23.776884]
[1728508061776,7.188,139.13,139.11,23.776884]
[1728508061969,7.1871,139.14,139.13,23.776884]
[1728508062177,7.1855,139.17,139.13,23.776884]
[1728508062371,0.90647243,139.17,139.13,25.21398286]
[1728508062591,7.187,139.14,139.13,23.776884]
[1728508062901,7.1866,139.15,139.13,23.776884]
[1728508063805,7.1866,139.15,139.13,25.21418358]
[1728508064094,7.187,139.14,139.13,23.776884]
[1728508064391,0.90647243,139.17,139.08,46.7353]
[1728508064701,0.90647243,139.17,139.08,46.7354]
[1728508064702,7.1883,139.12,139.08,46.7354]
[1728508064883,7.1883,139.12,139.09,70.0]
[1728508065279,7.1883,139.12,139.1,1.43753277]
[1728508065482,20.0,139.18,139.11,71.43753591]
[1728508065693,20.90647243,139.18,139.1,23.902374]
[1728508065879,7.1877,139.13,139.1,23.902374]
[1728508066297,7.1871,139.14,139.1,23.902374]
[1728508066503,20.90647243,139.18,139.12,23.776884]
[1728508066796,7.1865,139.15,139.12,23.776884]
[1728508068074,20.90647243,139.18,139.13,1.43727824]
[1728508068277,7.1861,139.16,139.14,23.776884]
[1728508069796,7.1861,139.16,139.13,23.776884]
[1728508070186,7.1865,139.15,139.13,23.776884]
[1728508070794,7.1865,139.15,139.12,24.027864]
[1728508071193,20.90647243,139.18,139.14,23.776884]
[1728508071194,7.1854,139.17,139.14,23.776884]
[1728508071397,7.1854,139.17,139.16,23.776884]
[1728508076999,7.185,139.18,139.16,23.776884]
[1728508077199,7.1846,139.19,139.18,23.776884]
[1728508077614,7.184,139.2,139.18,23.776884]
[1728508077776,7.1835,139.21,139.19,23.776884]